bitfinex/quotes_ETHUSD_20241120
["timestamp","ask_amount","ask_price","bid_price","bid_amount"]
[1732120852609,0.04056046,3082.8,3081.8,0.8799]
[1732120852776,0.06355949,3082.4,3081.8,0.8799]
[1732120852981,0.04055625,3083.3,3081.9,0.02523257]
[1732120853195,0.06351623,3082.3,3081.8,0.8799]
[1732120853424,3.36586725,3083.3,3081.8,0.8799]
[1732120853425,3.0,3083.1,3081.8,0.8799]
[1732120853736,0.04055326,3083.0,3081.8,0.8799]
[1732120854235,0.06376605,3082.9,3081.9,0.02523466]
[1732120854527,0.06376605,3082.9,3082.1,0.9476]
[1732120854737,0.04055033,3083.6,3082.3,0.9476]
[1732120855101,0.05983632,3083.5,3082.3,0.9476]
[1732120856036,0.05979626,3083.4,3082.3,0.9476]
[1732120856528,0.04055176,3083.3,3082.3,0.9476]
[1732120856736,0.05975303,3083.3,3082.3,0.9476]
[1732120857035,3.04055172,3083.8,3082.3,0.9476]
[1732120857191,0.05971207,3083.2,3082.3,0.9476]
[1732120857386,0.04054767,3083.6,3082.3,0.9476]
[1732120857590,0.05966883,3083.1,3082.3,0.9476]
[1732120857789,0.04054767,3083.6,3082.3,0.9476]
[1732120858401,0.05984176,3083.5,3082.3,0.9476]
[1732120858607,0.04054765,3083.4,3082.3,0.9476]
[1732120858790,0.35058659,3083.4,3082.3,0.9476]
[1732120858992,0.0597565,3083.3,3082.3,0.9476]
[1732120859532,0.0597565,3083.3,3081.8,0.02521922]
[1732120859845,0.04054957,3083.8,3082.5,0.9211]
[1732120859988,0.05971327,3083.2,3082.5,0.9211]
[1732120860189,3.0,3083.7,3082.5,0.9211]
[1732120860444,3.0,3083.1,3081.9,0.8991]
[1732120860739,0.04055874,3083.0,3081.9,0.8991]
[1732120860953,0.30405587,3082.9,3081.9,0.8991]
[1732120861236,0.09822854,3082.8,3081.9,0.8991]
[1732120861542,0.05767108,3082.8,3081.9,0.8991]
[1732120862334,0.04055377,3083.2,3082.0,0.862]
[1732120862620,0.04055018,3083.5,3082.2,0.862]
[1732120862944,0.05779656,3083.1,3082.2,0.862]
[1732120863236,0.05775332,3083.0,3082.2,0.862]
[1732120863594,0.04055707,3082.9,3082.2,0.862]
[1732120863795,0.05766277,3082.8,3082.2,0.862]
[1732120864232,0.05766277,3082.8,3081.9,0.862]
[1732120864233,0.04055639,3082.7,3081.9,0.862]
[1732120864435,3.0,3082.6,3081.9,0.862]
[1732120864614,0.04055887,3082.5,3081.9,0.862]
[1732120865103,0.05748976,3082.4,3081.9,0.862]
[1732120865306,0.36729462,3082.4,3081.9,0.862]
[1732120865531,0.04055976,3082.3,3080.5,0.9115]
[1732120865711,0.04055976,3082.3,3080.6,0.95794886]
[1732120865912,0.05739974,3082.2,3080.6,0.95794886]
[1732120866141,0.04056439,3082.1,3080.6,0.95794886]
[1732120866354,0.05739974,3082.2,3080.6,0.95794886]
[1732120866495,3.04055949,3082.7,3080.6,0.95794886]
[1732120866496,0.05731321,3082.0,3080.6,0.95794886]
[1732120866697,0.05735511,3082.1,3080.6,0.95794886]
[1732120866903,0.05726858,3081.9,3080.6,0.95794886]
[1732120867126,0.05731185,3082.0,3080.6,0.95794886]
[1732120867443,0.05726858,3081.9,3080.6,0.95794886]
[1732120867936,0.04056282,3082.2,3080.6,0.95794886]
[1732120868164,0.68349228,3082.1,3080.6,0.95794886]
[1732120868365,0.04056532,3082.0,3080.6,0.95794886]
[1732120868580,0.04056532,3082.0,3080.6,0.9327]
[1732120868581,0.55,3081.9,3080.6,0.9327]
[1732120868877,3.79496,3081.7,3080.6,0.9327]
[1732120869074,0.38355295,3081.6,3080.6,0.9327]
[1732120869227,0.05713589,3081.6,3080.6,0.9327]
[1732120869880,0.05713589,3081.6,3080.7,0.02526319]
[1732120870178,0.04057228,3082.0,3080.7,0.9461]
[1732120870482,0.60726194,3081.9,3080.7,0.9461]
[1732120870636,0.55,3081.7,3080.7,0.9461]
[1732120870841,0.04057438,3081.8,3080.7,0.9461]
[1732120871048,0.05710863,3081.6,3080.7,0.9461]
[1732120871249,0.05715191,3081.7,3080.7,0.9461]
[1732120871479,0.05706853,3081.5,3080.7,0.9461]
[1732120871654,0.05711181,3081.6,3080.7,0.9461]
[1732120871928,0.05702525,3081.4,3080.8,0.94525622]
[1732120872045,0.05706853,3081.5,3080.8,0.94525622]
[1732120872247,0.04056541,3082.7,3080.8,0.94525622]
[1732120872568,0.95760163,3082.6,3080.8,0.94525622]
[1732120872770,0.95760163,3082.6,3080.8,1.10957871]
[1732120872771,0.05754509,3082.6,3080.8,1.10957871]
[1732120873173,0.04055993,3082.9,3080.8,1.10957871]
[1732120873682,3.24333,3083.3,3081.0,0.92]
[1732120873683,0.05763159,3082.8,3081.0,0.92]
[1732120873843,0.05763159,3082.8,3081.2,0.92]
[1732120874044,0.324333,3083.2,3081.4,0.92]
[1732120874285,0.05759528,3082.7,3081.5,0.94522245]
[1732120874446,3.24325,3083.4,3081.5,0.94522245]
[1732120874657,0.04055216,3083.3,3081.5,0.94522245]
[1732120874853,0.32838022,3083.2,3081.5,0.94522245]
[1732120875178,3.24386,3082.8,3081.5,0.92]
[1732120875347,0.04055934,3082.7,3081.5,0.92]
[1732120875544,3.0,3082.6,3081.5,0.92]
[1732120875758,1.27653046,3082.5,3081.5,0.92]
[1732120876196,3.24434,3082.3,3081.5,0.92]
[1732120876368,0.09795194,3082.2,3081.5,0.92]
[1732120877199,3.0,3082.0,3081.5,0.92]
[1732120877407,0.64782381,3081.9,3080.6,0.89]
[1732120877709,1.32727881,3081.9,3080.6,0.89]
[1732120878074,0.77727881,3081.9,3080.6,0.89]
[1732120878279,0.0572574,3081.9,3080.6,0.89]
[1732120878597,0.55,3082.1,3080.6,0.89]
[1732120878902,0.09785205,3082.0,3080.6,0.89]
[1732120879111,0.55,3081.9,3080.6,0.89]
[1732120879256,0.40535496,3081.8,3080.6,0.89]
[1732120879462,0.42198495,3081.8,3080.6,0.89]
[1732120879705,0.05719974,3081.8,3080.9,0.3237]
[1732120880006,0.04056685,3081.7,3080.9,0.3237]
[1732120880360,0.05711212,3081.6,3080.9,0.3237]
[1732120880556,3.0,3081.4,3080.8,0.9479]
[1732120880775,0.55,3081.2,3080.8,0.9479]
[1732120881097,0.05689402,3081.1,3080.8,0.9479]
[1732120882073,0.05689402,3081.1,3080.0,0.3237]
[1732120882074,0.05689402,3081.1,3080.1,0.8688]
[1732120882436,0.04057842,3081.0,3080.1,0.8688]
[1732120882714,0.42987966,3081.0,3080.1,0.8688]
[1732120882936,3.24537,3081.4,3079.7,0.3237]
[1732120882937,0.0567985,3080.9,3080.2,0.0252769]
[1732120883093,0.0567985,3080.9,3080.2,0.8688]
[1732120883276,3.0405722,3082.2,3080.6,1.1885]
[1732120883277,0.0405722,3082.2,3080.6,1.1885]
[1732120883476,0.0405722,3082.2,3080.9,0.8648]
[1732120883712,0.05676804,3082.1,3080.9,0.8648]
[1732120883918,0.04056527,3082.0,3080.9,0.8648]
[1732120884101,0.05676804,3082.1,3081.1,0.8668]
[1732120884309,3.24376,3082.9,3081.2,0.8668]
[1732120884310,0.0566815,3081.9,3081.2,0.8668]
[1732120884524,0.324376,3082.8,3081.2,0.9335]
[1732120884688,0.04055883,3082.7,3081.2,0.9335]
[1732120884901,0.09760095,3082.7,3081.2,0.9335]
[1732120885089,3.24407,3082.6,3081.2,0.9335]
[1732120885287,0.36902525,3082.5,3081.3,0.9335]
[1732120885485,0.36902525,3082.5,3081.4,0.02524373]
[1732120885486,0.05695562,3082.5,3081.4,0.02524373]
[1732120885691,0.05695562,3082.5,3081.4,0.9445]
[1732120885914,0.04055881,3083.0,3081.4,0.9445]
[1732120886216,0.36896169,3083.0,3081.4,0.9445]
[1732120886424,0.05634139,3082.9,3081.4,0.9445]
[1732120886589,0.04055631,3082.8,3081.4,0.9445]
[1732120886966,3.8501649,3082.7,3081.4,0.9445]
[1732120887218,0.04055998,3082.6,3081.4,0.9445]
[1732120887580,0.05616839,3082.5,3081.4,0.9445]
[1732120887791,0.37463985,3082.4,3081.4,0.9445]
[1732120888088,0.60608642,3082.3,3081.4,0.9445]
[1732120888303,0.04056432,3082.2,3081.4,0.9445]
[1732120888614,0.05599989,3082.1,3081.4,0.9445]
[1732120888816,0.04056432,3082.0,3081.4,0.9445]
[1732120889028,0.05590699,3081.9,3081.4,0.9445]
[1732120889521,3.79438,3082.3,3081.4,0.9445]
[1732120889704,3.79438,3082.3,3080.8,0.3237]
[1732120889705,0.05586372,3081.8,3081.1,0.8854]
[1732120889890,0.04056768,3082.2,3081.1,0.8854]
[1732120890090,0.0558162,3081.7,3081.1,0.8854]
[1732120890330,0.04056768,3082.2,3081.1,0.8854]
[1732120890701,0.09655661,3082.1,3081.1,0.8854]
[1732120890908,0.30965566,3082.0,3081.1,0.8854]
[1732120891217,0.09646465,3081.9,3081.1,0.8854]
[1732120891941,3.55,3081.8,3081.1,0.8854]
[1732120892095,0.55,3081.8,3081.1,0.8854]
[1732120892291,0.55,3081.6,3081.1,0.8854]
[1732120892485,0.55,3081.4,3080.3,0.9131]
[1732120892718,0.0405768,3081.3,3080.3,0.9131]
[1732120892919,0.05563565,3081.3,3080.3,0.9131]
[1732120893214,0.0405761,3081.2,3080.3,0.9131]
[1732120893551,0.05554906,3081.1,3080.3,0.9131]
[1732120893857,0.04057758,3081.0,3080.3,0.9131]
[1732120894207,3.05545901,3080.9,3080.3,0.9131]
[1732120894409,0.67476343,3080.8,3080.3,0.9131]
[1732120894663,0.05536468,3080.7,3080.3,0.9131]
[1732120895008,0.04058077,3080.8,3080.3,0.9131]
[1732120895209,0.05536468,3080.7,3080.3,0.9131]
[1732120895708,0.0405812,3081.3,3080.3,0.9131]
[1732120895921,0.05531653,3080.6,3080.3,0.9131]
[1732120896218,0.05526489,3080.5,3080.3,0.9131]
[1732120896430,0.04057627,3081.2,3080.3,0.9131]
[1732120896966,0.055525,3081.1,3080.3,0.9131]
[1732120897249,0.04057831,3081.0,3080.3,0.9131]
[1732120897610,0.09601702,3080.9,3080.3,0.9131]
[1732120897974,0.55,3080.8,3080.0,0.8894]
[1732120898264,3.0,3081.0,3080.0,0.8894]
[1732120898265,0.55,3080.6,3080.0,0.8894]
[1732120898760,0.05526549,3080.5,3080.0,0.8894]
[1732120899554,0.55,3080.8,3080.0,0.8894]
[1732120899757,0.05522218,3080.4,3080.0,0.8894]
[1732120899955,0.55,3080.9,3080.0,0.8894]
[1732120900129,0.05517886,3080.3,3080.0,0.8894]
[1732120900339,0.0405834,3080.7,3080.0,0.8894]
[1732120900520,0.05513555,3080.2,3080.0,0.8894]
[1732120900721,0.04058339,3080.7,3080.0,0.8894]
[1732120901120,0.0553088,3080.6,3080.0,0.8894]
[1732120901364,0.04058354,3080.5,3080.0,0.8894]
[1732120901721,0.05521688,3080.4,3080.0,0.8894]
[1732120902084,0.489335,3080.0,3079.1,0.02528767]
[1732120902289,0.489335,3080.0,3079.1,0.02529079]
[1732120902586,0.05500028,3079.9,3079.4,3.0]
[1732120902799,0.489335,3080.0,3079.5,3.32528132]
[1732120902947,0.489335,3080.0,3079.7,3.0]
[1732120903147,0.489335,3080.0,3079.8,0.02528114]
[1732120903414,0.489335,3080.0,3079.8,3.02528114]
[1732120903683,0.489335,3080.0,3079.3,0.01]
[1732120903684,0.489335,3080.0,3079.9,0.30252811]
[1732120903890,0.489335,3080.0,3079.3,0.03527685]
[1732120904795,0.04057959,3081.6,3080.1,0.3237]
[1732120904994,0.8766,3081.7,3080.3,0.3237]
[1732120905287,3.24438,3082.3,3079.6,0.01]
[1732120905288,0.05391472,3081.6,3080.7,0.8588]
[1732120905443,0.05391472,3081.6,3080.8,0.3237]
[1732120905643,0.04056946,3082.3,3080.9,1.1825]
[1732120906100,0.05417434,3082.2,3080.9,1.1825]
[1732120906271,0.05417434,3082.2,3081.0,1.1861]
[1732120906663,0.05417434,3082.2,3081.2,0.8624]
[1732120906852,0.04055751,3082.8,3081.4,0.8977]
[1732120907056,0.04055751,3082.8,3081.5,0.02523508]
[1732120907256,0.0526736,3082.7,3081.8,1.1936]
[1732120907489,0.0526736,3082.7,3082.0,1.1936]
[1732120907717,0.8848,3083.6,3082.2,0.8699]
[1732120907862,0.04054764,3083.5,3082.2,0.8699]
[1732120908240,3.24328,3083.3,3082.2,0.8699]
[1732120908499,0.05133592,3083.5,3081.9,0.8699]
[1732120908500,3.24359,3083.0,3081.9,0.8699]
[1732120908696,0.04055777,3082.9,3081.9,0.8699]
[1732120908907,0.32841478,3082.8,3081.9,0.8699]
[1732120909057,0.36897254,3082.8,3081.9,0.8699]
[1732120909257,0.60101097,3082.7,3081.9,0.8699]
[1732120909492,1.4596,3082.5,3080.7,0.3237]
[1732120909716,0.55,3082.3,3080.8,0.93645215]
[1732120910231,0.05079437,3082.2,3080.8,0.93645215]
[1732120910378,0.04056262,3082.4,3080.8,0.93645215]
[1732120910712,0.05083228,3082.3,3080.8,0.93645215]
[1732120911271,0.05083228,3082.3,3080.9,3.0]
[1732120911476,0.05083228,3082.3,3081.3,3.0]
[1732120911710,0.05083228,3082.3,3081.5,0.9082]
[1732120911922,0.05083228,3082.3,3081.4,0.02523196]
[1732120911923,0.9288,3083.2,3081.7,0.9082]
[1732120912138,0.04054823,3084.0,3081.9,0.9082]
[1732120912411,0.04054823,3084.0,3080.9,0.01]
[1732120912412,0.04054823,3084.0,3082.1,0.9082]
[1732120912617,0.05151774,3083.9,3082.3,0.9082]
[1732120912918,0.04054178,3083.8,3082.5,0.9082]
[1732120913323,0.05143131,3083.7,3082.5,0.9082]
[1732120914517,0.05143131,3083.7,3082.5,1.32422369]
[1732120914725,0.04053852,3084.0,3082.7,0.9459]
[1732120914876,0.76257947,3084.3,3082.8,0.02519819]
[1732120914877,0.05140222,3083.6,3082.8,0.02519819]
[1732120915077,0.16662795,3084.2,3083.3,3.0]
[1732120915299,0.76257947,3084.3,3083.5,0.9459]
[1732120915475,0.0516212,3084.1,3083.5,0.9459]
[1732120915676,3.916,3084.5,3083.5,0.9459]
[1732120915677,0.05166441,3084.2,3083.5,0.9459]
[1732120915898,0.3916,3084.4,3083.4,0.02517983]
[1732120915899,0.05157799,3084.0,3083.6,0.0251778]
[1732120916114,0.0516212,3084.1,3083.7,0.9097]
[1732120916320,0.05150111,3083.9,3083.8,3.0]
[1732120916475,4.3076,3084.5,3083.8,3.0]
[1732120916672,4.3076,3084.5,3083.5,3.0]
[1732120916916,0.48246864,3084.4,3083.6,0.9097]
[1732120917141,0.48246864,3084.4,3083.6,0.93487885]
[1732120917440,0.05170864,3084.4,3083.6,0.93487885]
[1732120917626,0.05170864,3084.4,3083.9,0.9029]
[1732120917834,3.916,3084.5,3083.9,0.92806444]
[1732120918158,0.05172358,3084.4,3084.1,0.9029]
[1732120918328,0.05172358,3084.4,3084.1,3.9029]
[1732120918635,3.916,3084.5,3084.3,0.9381]
[1732120919046,0.05172844,3084.4,3084.3,0.9381]
[1732120919416,3.916,3084.5,3084.3,0.9381]
[1732120919602,0.05000416,3084.4,3084.3,0.9381]
[1732120921537,0.0483948,3084.4,3084.3,0.9381]
[1732120922038,3.916,3084.5,3084.3,0.9381]
[1732120922243,0.39643948,3084.4,3084.3,0.9381]
[1732120922800,0.4369644,3084.4,3083.8,0.9155]
[1732120923116,0.43529644,3084.3,3083.8,0.9155]
[1732120923325,0.04052884,3084.2,3083.8,0.9155]
[1732120923513,0.43529644,3084.3,3083.8,0.9155]
[1732120923850,0.04832656,3084.2,3083.8,0.9155]
[1732120924346,0.43529644,3084.3,3083.8,0.9155]
[1732120924503,0.04828335,3084.1,3083.5,3.0]
[1732120924731,0.04832656,3084.2,3083.0,0.9155]
[1732120924941,0.04824014,3084.0,3083.0,0.9155]
[1732120925154,0.04828335,3084.1,3083.0,0.9155]
[1732120925354,0.04819693,3083.9,3083.0,0.9155]
[1732120925568,0.04053295,3084.2,3083.0,0.9155]
[1732120925569,0.04824014,3084.0,3083.0,0.9155]
[1732120925728,0.9488,3083.7,3082.5,6.2455]
[1732120925947,0.9488,3083.7,3081.6,0.94070891]
[1732120925948,0.04054442,3083.6,3081.6,0.94070891]
[1732120926150,0.04054442,3083.6,3081.7,0.02521181]
[1732120926151,0.04806727,3083.6,3081.7,0.02521181]
[1732120926363,3.24308,3083.5,3081.8,0.8793]
[1732120926576,0.08861184,3083.6,3081.8,0.90450922]
[1732120926577,0.04806727,3083.6,3081.8,0.90450922]
[1732120926889,0.04802405,3083.5,3082.0,0.9489]
[1732120927046,0.04802405,3083.5,3082.2,0.9489]
[1732120927248,0.881,3084.1,3082.4,0.9489]
[1732120927461,0.881,3084.1,3082.6,0.8623]
[1732120927658,0.04824014,3084.0,3082.8,0.8623]
[1732120927872,4.8401,3084.5,3083.5,0.8623]
[1732120928047,0.04819693,3083.9,3083.5,0.8623]
[1732120928259,0.0405315,3084.4,3083.5,0.8623]
[1732120928475,0.04811852,3083.8,3083.5,0.8623]
[1732120928649,5.32411,3084.5,3083.5,0.8623]
[1732120928851,0.58078877,3084.4,3083.5,0.8623]
[1732120930103,3.82291877,3084.4,3083.2,3.8687]
[1732120930303,0.54208888,3084.3,3083.2,0.8687]
[1732120930451,0.04053395,3084.2,3083.2,0.8687]
[1732120930647,0.0878566,3084.2,3083.2,0.8687]
[1732120931053,0.0878566,3084.2,3082.7,0.866]
[1732120931252,0.0878566,3084.2,3082.3,0.866]
[1732120931253,0.9235,3084.0,3082.3,0.866]
[1732120931451,0.8927,3083.8,3082.3,0.866]
[1732120931693,0.08762849,3083.7,3082.3,0.866]
[1732120932464,0.8927,3083.6,3081.9,0.8707]
[1732120932664,0.0405515,3083.5,3081.9,0.8707]
[1732120932864,0.8927,3083.4,3081.9,0.8707]
[1732120933062,0.8927,3083.2,3081.9,0.8707]
[1732120933267,0.0405553,3083.1,3081.9,0.8707]
[1732120933496,0.08736132,3083.1,3081.9,0.8707]
[1732120933706,0.08736132,3083.1,3081.4,0.9148]
[1732120933998,0.9077,3083.0,3081.4,0.9148]
[1732120934155,0.01,3082.8,3081.0,0.9148]
[1732120934355,0.9077,3082.6,3081.0,0.9148]
[1732120934706,0.9077,3082.4,3080.7,0.9148]
[1732120934865,0.94826758,3082.3,3080.0,0.9148]
[1732120935200,0.99471511,3082.3,3080.1,0.02526271]
[1732120936302,0.99471511,3082.3,3080.3,0.86]
[1732120936455,0.95414753,3082.3,3080.5,0.86]
[1732120936656,0.04056368,3082.2,3080.5,0.86]
[1732120936897,0.8856,3082.1,3080.5,0.86]
[1732120937210,0.8856,3081.9,3080.5,0.86]
[1732120937356,0.04057084,3081.8,3079.8,0.86]
[1732120937561,0.04057084,3081.8,3080.0,0.86]
[1732120937562,0.04619334,3081.8,3080.0,0.86]
[1732120937868,0.8856,3081.9,3080.1,0.02526132]
[1732120938211,0.04057062,3081.8,3080.1,0.02526132]
[1732120938361,0.8856,3081.9,3080.2,0.8784]
[1732120938557,0.04056657,3081.8,3080.3,0.57525321]
[1732120938810,0.8878,3081.7,3079.8,0.02525584]
[1732120938961,0.8878,3081.6,3079.9,0.94637407]
[1732120939306,0.04057071,3081.5,3079.9,0.94637407]
[1732120940059,0.04057071,3081.5,3079.9,0.9211]
[1732120940598,0.9216,3081.4,3079.9,0.9211]
[1732120940770,0.9216,3081.2,3079.5,6.2101]
[1732120940969,0.04058164,3081.1,3079.6,0.534]
[1732120941169,0.04058164,3081.1,3079.7,0.69969336]
[1732120941400,0.04058164,3081.1,3079.7,0.67441]
[1732120941699,0.9216,3081.0,3079.5,6.2101]
[1732120941993,0.04058465,3080.9,3079.6,3.0]
[1732120942209,0.9216,3080.8,3079.5,5.34]
[1732120942365,0.04058598,3080.7,3079.1,0.89539204]
[1732120942772,0.9216,3080.5,3079.1,0.8701]
[1732120942975,0.04058765,3080.4,3079.1,0.8701]
[1732120943419,0.9216,3080.5,3079.2,0.02529535]
[1732120943622,0.04058764,3081.6,3079.3,0.8701]
[1732120943623,0.9216,3081.5,3079.3,0.8701]
[1732120943788,0.04057751,3081.4,3079.4,0.02527509]
[1732120943993,0.04597392,3081.4,3079.5,0.9489]
[1732120944213,0.04597392,3081.4,3079.7,0.9489]
[1732120944492,0.9216,3081.5,3080.0,0.55]
[1732120944688,0.9216,3081.5,3080.1,0.02525673]
[1732120944928,0.9216,3081.5,3080.2,0.9339]
[1732120945093,0.9146,3082.4,3080.5,0.55]
[1732120945299,0.9146,3082.4,3080.6,0.02524644]
[1732120945300,0.04056318,3082.3,3080.6,0.02524644]
[1732120945536,0.04056318,3082.3,3080.4,0.9339]
[1732120945537,0.9146,3082.2,3080.4,0.9339]
[1732120945720,0.9146,3082.0,3080.4,0.9339]
[1732120945900,0.95516966,3081.9,3079.8,0.55]
[1732120946092,0.95516966,3081.9,3079.8,0.30352472]
[1732120946093,0.9363731,3081.8,3079.8,0.30352472]
[1732120946287,0.8958,3081.7,3079.7,0.95917568]
[1732120946487,0.93637762,3081.6,3079.7,0.95917568]
[1732120946689,0.93637762,3081.6,3079.7,0.9339]
[1732120946887,0.94637762,3081.6,3079.8,0.39339]
[1732120947191,0.94637762,3081.6,3079.5,5.34]
[1732120948242,0.01,3081.3,3079.5,5.34]
[1732120948425,0.9549,3081.1,3079.0,0.9254]
[1732120948635,0.9449,3080.9,3079.0,0.9254]
[1732120948835,0.9449,3080.7,3079.0,0.9254]
[1732120949002,0.98548757,3080.6,3079.0,0.9254]
[1732120949209,0.98548757,3080.6,3078.1,0.04529521]
[1732120949210,1.03111155,3080.6,3078.6,0.9254]
[1732120949527,0.9549,3080.5,3078.3,0.95070563]
[1732120949839,0.9449,3080.3,3078.3,0.02530563]
[1732120950015,0.98549613,3080.2,3078.3,0.02530563]
[1732120950337,0.98549613,3080.2,3078.0,0.02531232]
[1732120951443,0.04540187,3080.1,3078.0,0.02531232]
[1732120951763,0.9046,3079.9,3078.0,0.02531232]
[1732120951915,0.04059743,3079.8,3078.0,0.02531232]
[1732120952113,0.04059743,3079.8,3078.0,0.57531232]
[1732120952340,0.9046,3079.9,3078.3,0.9093]
[1732120952572,0.9046,3079.9,3078.4,0.57529599]
[1732120952850,0.9046,3080.5,3079.1,0.55]
[1732120952851,0.04525921,3079.8,3079.1,0.55]
[1732120953058,0.04525921,3079.8,3079.2,0.02528823]
[1732120953357,0.04519228,3079.7,3079.5,3.0]
[1732120953511,0.9349,3080.3,3079.6,0.3]
[1732120954349,0.9349,3080.3,3079.2,0.02528054]
[1732120954559,0.9349,3080.3,3079.0,0.8993]
[1732120954712,0.9349,3080.1,3078.6,0.8993]
[1732120954915,0.9349,3079.9,3078.6,0.8993]
[1732120955143,0.9349,3079.9,3078.5,0.02529727]
[1732120955144,0.04059197,3079.8,3078.5,0.02529727]
[1732120955320,0.9349,3079.9,3078.5,0.02529727]
[1732120955653,0.04059193,3079.8,3078.5,0.02529727]
[1732120955855,0.9349,3079.7,3078.3,0.02530399]
[1732120956929,0.9349,3079.7,3078.3,0.57530399]
[1732120957310,0.9349,3079.7,3078.3,0.58530399]
[1732120957549,0.9349,3079.7,3079.0,3.0]
[1732120959119,0.9349,3079.7,3079.1,0.02530367]
[1732120959345,0.9349,3079.7,3079.0,3.0]
[1732120959550,0.9349,3079.7,3078.6,0.02529762]
[1732120959838,0.9349,3079.7,3079.0,3.0]
[1732120960154,0.9349,3079.7,3079.1,3.32529762]
[1732120960332,0.9349,3079.7,3079.1,3.02529762]
[1732120960528,0.9349,3079.7,3079.1,3.0]
[1732120961376,0.9349,3079.7,3078.5,0.02529758]
[1732120961719,0.04372155,3079.6,3078.5,0.02529758]
[1732120961966,0.04372155,3079.6,3078.4,0.33437981]
[1732120961967,0.08431438,3079.6,3078.4,0.190674]
[1732120962208,0.04372155,3079.6,3078.4,0.190674]
[1732120963638,0.04372155,3079.6,3078.6,3.0]
[1732120963824,0.8559,3079.5,3078.3,0.02530796]
[1732120964168,0.8559,3079.3,3078.6,3.0]
[1732120964387,0.8559,3079.3,3078.0,0.02531105]
[1732120964670,0.54059549,3079.9,3077.5,0.8631]
[1732120964671,0.9007,3079.1,3077.5,0.8631]
[1732120964875,0.9007,3079.1,3077.5,0.88842341]
[1732120965023,0.08407147,3079.0,3077.5,0.88842341]
[1732120965229,0.9489,3079.6,3077.5,0.88842341]
[1732120965425,0.9489,3079.4,3077.5,0.88842341]
[1732120965658,0.9895038,3079.3,3077.5,0.88842341]
[1732120965825,1.03310151,3079.3,3077.5,0.88842341]
[1732120966339,0.99249771,3079.3,3077.6,0.55]
[1732120966526,0.99249771,3079.3,3078.3,3.0]
[1732120966725,0.99249771,3079.3,3078.4,0.32531683]
[1732120966921,0.99249771,3079.3,3078.4,0.02531683]
[1732120967167,0.99249771,3079.3,3077.8,0.9179]
[1732120967373,0.99249771,3079.3,3078.4,3.0]
[1732120967572,0.99249771,3079.3,3078.5,0.02531343]
[1732120967573,0.9489,3079.3,3078.5,0.02531343]
[1732120968067,0.9489,3079.3,3078.0,0.01]
[1732120968068,0.04354671,3079.2,3078.7,3.0]
[1732120968272,0.04354671,3079.2,3078.8,0.3]
[1732120968571,0.9489,3079.3,3078.7,3.0]
[1732120968780,0.9489,3079.3,3078.8,0.02530793]
[1732120968781,0.04350337,3079.1,3078.8,0.02530793]
[1732120969087,0.04354671,3079.2,3078.7,3.0]
[1732120969290,0.04346002,3079.0,3078.8,0.3]
[1732120969497,0.9489,3079.3,3078.8,3.0]
[1732120969654,0.9489,3079.3,3078.8,0.38859047]
[1732120969869,0.04354671,3079.2,3078.8,3.0]
[1732120970248,0.9489,3079.3,3078.6,0.88590468]
[1732120970485,0.9489,3079.3,3078.4,0.55]
[1732120970694,0.04354671,3079.2,3078.8,3.0]
[1732120970988,0.04354671,3079.2,3078.5,0.02530459]
[1732120971159,0.9489,3079.3,3078.8,3.0]
[1732120971362,0.9489,3079.3,3078.5,0.02530459]
[1732120971690,0.04355729,3079.2,3078.8,3.0]
[1732120971869,0.04355729,3079.2,3078.3,1.05643901]
[1732120972067,0.9489,3079.3,3078.3,1.05643901]
[1732120972594,0.04355599,3079.2,3078.8,3.0]
[1732120972799,0.04355599,3079.2,3078.3,1.05643901]
[1732120972985,0.9435,3079.1,3078.1,0.02530759]
[1732120973297,0.9435,3079.1,3078.0,0.02531629]
[1732120974262,0.9435,3079.1,3077.9,0.57531919]
[1732120974686,0.9435,3079.1,3078.0,0.79079711]
[1732120974882,0.9435,3079.1,3078.4,3.0]
[1732120975089,0.9435,3079.1,3078.1,0.02531923]
[1732120975284,0.9435,3079.1,3078.0,0.02531923]
[1732120975509,0.9435,3079.1,3078.0,0.62625137]
[1732120976401,0.9435,3079.1,3078.0,4.96460159]
[1732120976559,0.9435,3079.1,3078.0,3.62625137]
[1732120977433,0.935,3078.9,3077.9,0.02531929]
[1732120977597,0.935,3078.9,3077.7,2.00752534]
[1732120977598,0.935,3078.9,3077.7,0.02532551]
[1732120977928,0.91540318,3078.8,3077.6,1.33835022]
[1732120978222,0.91540318,3078.8,3077.4,1.33835022]
[1732120978433,0.91540318,3078.8,3077.4,1.81981856]
[1732120978581,0.95493109,3078.7,3077.5,0.02533984]
[1732120978997,0.9116,3078.7,3077.4,1.81981856]
[1732120979241,0.9116,3078.7,3077.5,0.18198186]
[1732120979525,0.99549242,3078.6,3077.4,1.81981856]
[1732120979723,0.95488252,3078.6,3077.4,0.48146834]
[1732120979923,0.95488252,3078.6,3077.4,1.81981856]
[1732120980145,0.914,3078.4,3077.4,1.33835022]
[1732120980434,0.914,3078.2,3077.3,1.33835022]
[1732120980726,0.914,3078.2,3077.4,0.02534857]
[1732120980927,0.914,3078.2,3077.2,2.6968428]
[1732120981131,0.914,3078.2,3077.3,0.49832025]
[1732120981426,0.914,3078.2,3077.3,4.81132189]
[1732120981633,0.914,3078.2,3076.9,3.37324565]
[1732120981634,0.9311,3078.0,3077.1,1.33835022]
[1732120981837,0.01,3078.5,3077.0,0.02535804]
[1732120981838,0.9311,3077.8,3077.0,0.02535804]
[1732120982129,0.9311,3077.8,3076.9,0.26767004]
[1732120982130,0.04286659,3077.7,3076.9,0.26767004]
[1732120982495,0.9311,3077.8,3076.9,0.26767004]
[1732120983227,0.9311,3077.8,3077.0,0.02535652]
[1732120983734,0.9311,3077.8,3076.7,0.34905391]
[1732120983940,0.9311,3077.8,3076.8,0.48282591]
[1732120984135,0.04061692,3077.7,3076.8,0.48282591]
[1732120984292,0.9389,3077.6,3076.6,0.3237]
[1732120984489,3.24855,3078.3,3076.6,0.3237]
[1732120984490,0.9389,3077.4,3076.6,0.3237]